[Event "Titled Tuesday Blitz October 11 Early 2022"]
[White "Luxama, Jacques Muller"]
[Black "Orzech, Dominik"]
[WhiteFideId "11900113"]
[BlackFideId "1115065"]
[WhiteElo "1931"]
[BlackElo "2272"]
[Result "0-1"]
[Round "04"]
[TimeControl "180+1"]
[Date "2022.10.12"]
[WhiteClock "0:00:08"]
[BlackClock "0:00:50"]

1. e4 {[%clk 0:02:59]}  c6 {[%clk 0:02:50]} 2. c4 {[%clk 0:02:58]}  d5 {[%clk 0:02:38]} 3. cxd5 {[%clk 0:02:59]}  cxd5 {[%clk 0:02:39]} 4. exd5 {[%clk 0:02:58]}  Nf6 {[%clk 0:02:39]} 5. Nc3 {[%clk 0:02:57]}  Nxd5 {[%clk 0:02:37]} 6. d4 {[%clk 0:02:58]}  g6 {[%clk 0:02:36]} 7. Bc4 {[%clk 0:02:58]}  Nb6 {[%clk 0:02:34]} 8. Bb3 {[%clk 0:02:58]}  Bg7 {[%clk 0:02:33]} 9. Nf3 {[%clk 0:02:58]}  O-O {[%clk 0:02:32]} 10. O-O {[%clk 0:02:57]}  Nc6 {[%clk 0:02:31]} 11. d5 {[%clk 0:02:55]}  Na5 {[%clk 0:02:30]} 12. h3 {[%clk 0:02:51]}  Bf5 {[%clk 0:02:28]} 13. Re1 {[%clk 0:02:22]}  Rc8 {[%clk 0:02:26]} 14. Bg5 {[%clk 0:02:19]}  Re8 {[%clk 0:02:24]} 15. Ne5 {[%clk 0:02:15]}  Qd6 {[%clk 0:02:19]} 16. Bf4 {[%clk 0:02:08]}  Qb4 {[%clk 0:02:15]} 17. Bd2 {[%clk 0:01:47]}  Nxb3 {[%clk 0:02:10]} 18. axb3 {[%clk 0:01:47]}  a6 {[%clk 0:02:09]} 19. Na4 {[%clk 0:01:45]}  Qb5 {[%clk 0:02:07]} 20. Nxb6 {[%clk 0:01:33]}  Qxb6 {[%clk 0:02:06]} 21. Bc3 {[%clk 0:01:31]}  Red8 {[%clk 0:02:03]} 22. Qf3 {[%clk 0:01:25]}  Qc7 {[%clk 0:02:02]} 23. g4 {[%clk 0:01:20]}  Qd6 {[%clk 0:01:46]} 24. gxf5 {[%clk 0:01:18]}  Qxd5 {[%clk 0:01:47]} 25. Qxd5 {[%clk 0:01:15]}  Rxd5 {[%clk 0:01:47]} 26. fxg6 {[%clk 0:01:15]}  hxg6 {[%clk 0:01:47]} 27. Nc4 {[%clk 0:01:09]}  b5 {[%clk 0:01:35]} 28. Nb6 {[%clk 0:01:09]}  Rg5+ {[%clk 0:01:34]} 29. Kf1 {[%clk 0:01:05]}  Rc6 {[%clk 0:01:34]} 30. Bxg7 {[%clk 0:01:03]}  Kxg7 {[%clk 0:01:33]} 31. Nd7 {[%clk 0:01:01]}  Rc2 {[%clk 0:01:29]} 32. Re2 {[%clk 0:00:59]}  Rxe2 {[%clk 0:01:25]} 33. Kxe2 {[%clk 0:00:59]}  Rd5 {[%clk 0:01:25]} 34. Nb6 {[%clk 0:00:54]}  Rd6 {[%clk 0:01:25]} 35. Rxa6 {[%clk 0:00:54]}  g5 {[%clk 0:01:21]} 36. Kf3 {[%clk 0:00:41]}  Kg6 {[%clk 0:01:20]} 37. Ke4 {[%clk 0:00:40]}  Kh5 {[%clk 0:01:17]} 38. Ke5 {[%clk 0:00:36]}  Kh4 {[%clk 0:01:16]} 39. b4 {[%clk 0:00:33]}  Re6+ {[%clk 0:01:09]} 40. Kd5 {[%clk 0:00:32]}  Rf6 {[%clk 0:01:08]} 41. Kc5 {[%clk 0:00:29]}  Rxf2 {[%clk 0:01:06]} 42. Kxb5 {[%clk 0:00:29]}  Kxh3 {[%clk 0:01:06]} 43. Nd5 {[%clk 0:00:28]}  g4 {[%clk 0:01:05]} 44. Nxe7 {[%clk 0:00:28]}  g3 {[%clk 0:01:05]} 45. Rh6+ {[%clk 0:00:27]}  Kg2 {[%clk 0:01:05]} 46. Nd5 {[%clk 0:00:27]}  Kf3 {[%clk 0:01:04]} 47. Rf6+ {[%clk 0:00:26]}  Ke4 {[%clk 0:01:04]} 48. Nc3+ {[%clk 0:00:25]}  Kd3 {[%clk 0:01:02]} 49. Rd6+ {[%clk 0:00:24]}  Kc2 {[%clk 0:01:00]} 50. Rd1 {[%clk 0:00:22]}  g2 {[%clk 0:00:59]} 51. Rg1 {[%clk 0:00:11]}  f5 {[%clk 0:00:58]} 52. Kc4 {[%clk 0:00:11]}  f4 {[%clk 0:00:55]} 53. b5 {[%clk 0:00:11]}  f3 {[%clk 0:00:55]} 54. Nd5 {[%clk 0:00:09]}  Kxb2 {[%clk 0:00:53]} 55. Ne3 {[%clk 0:00:09]}  Re2 {[%clk 0:00:53]} 56. Nxg2 {[%clk 0:00:08]}  Rxg2 {[%clk 0:00:52]} 57. b6 {[%clk 0:00:08]}  Rxg1 {[%clk 0:00:51]} 58. b7 {[%clk 0:00:08]}  Rg8 {[%clk 0:00:50]} 0-1


[Site "https://www.chess.com"]

[Event "Titled Tuesday Blitz October 11 Early 2022"]
[White "Manon-og, Ramon Jr."]
[Black "Hanley, Craig A"]
[WhiteFideId "5200776"]
[BlackFideId "408514"]
[WhiteElo "2240"]
[BlackElo "2439"]
[Result "0-1"]
[Round "04"]
[TimeControl "180+1"]
[Date "2022.10.12"]
[WhiteClock "0:00:45"]
[BlackClock "0:00:16"]

1. e4 {[%clk 0:02:56]}  c5 {[%clk 0:02:57]} 2. Nf3 {[%clk 0:02:56]}  d6 {[%clk 0:02:58]} 3. Bb5+ {[%clk 0:02:56]}  Bd7 {[%clk 0:02:57]} 4. Bxd7+ {[%clk 0:02:56]}  Qxd7 {[%clk 0:02:57]} 5. c4 {[%clk 0:02:56]}  Nf6 {[%clk 0:02:55]} 6. Nc3 {[%clk 0:02:57]}  Nc6 {[%clk 0:02:55]} 7. d3 {[%clk 0:02:57]}  g6 {[%clk 0:02:51]} 8. O-O {[%clk 0:02:57]}  Bg7 {[%clk 0:02:52]} 9. Bg5 {[%clk 0:02:57]}  h6 {[%clk 0:02:51]} 10. Bh4 {[%clk 0:02:57]}  g5 {[%clk 0:02:47]} 11. Bg3 {[%clk 0:02:57]}  Nh5 {[%clk 0:02:46]} 12. Qd2 {[%clk 0:02:57]}  a6 {[%clk 0:02:38]} 13. Nd5 {[%clk 0:02:48]}  Rb8 {[%clk 0:02:36]} 14. Nb6 {[%clk 0:02:45]}  Qd8 {[%clk 0:02:31]} 15. Nd5 {[%clk 0:02:45]}  b5 {[%clk 0:02:24]} 16. Rab1 {[%clk 0:02:41]}  e6 {[%clk 0:02:06]} 17. Ne3 {[%clk 0:02:36]}  Qd7 {[%clk 0:01:41]} 18. a3 {[%clk 0:02:34]}  b4 {[%clk 0:01:39]} 19. axb4 {[%clk 0:02:29]}  Rxb4 {[%clk 0:01:38]} 20. d4 {[%clk 0:02:22]}  Nxg3 {[%clk 0:01:33]} 21. hxg3 {[%clk 0:02:20]}  cxd4 {[%clk 0:01:13]} 22. Nc2 {[%clk 0:02:16]}  Rxc4 {[%clk 0:01:11]} 23. b3 {[%clk 0:02:16]}  Rc5 {[%clk 0:00:43]} 24. Ncxd4 {[%clk 0:02:15]}  O-O {[%clk 0:00:40]} 25. Rfd1 {[%clk 0:02:12]}  Nxd4 {[%clk 0:00:39]} 26. Nxd4 {[%clk 0:02:12]}  d5 {[%clk 0:00:27]} 27. b4 {[%clk 0:02:02]}  Rc4 {[%clk 0:00:26]} 28. Nb3 {[%clk 0:02:02]}  d4 {[%clk 0:00:20]} 29. Nc5 {[%clk 0:02:00]}  Qb5 {[%clk 0:00:20]} 30. Qd3 {[%clk 0:01:40]}  Rc8 {[%clk 0:00:19]} 31. Kh2 {[%clk 0:01:38]}  g4 {[%clk 0:00:18]} 32. Qa3 {[%clk 0:01:28]}  a5 {[%clk 0:00:17]} 33. Nd3 {[%clk 0:01:25]}  axb4 {[%clk 0:00:17]} 34. Nxb4 {[%clk 0:01:23]}  Qh5+ {[%clk 0:00:17]} 35. Kg1 {[%clk 0:01:23]}  Rc3 {[%clk 0:00:17]} 36. Qa6 {[%clk 0:01:20]}  Qc5 {[%clk 0:00:16]} 37. Nd3 {[%clk 0:01:20]}  Qa3 {[%clk 0:00:16]} 38. Qb7 {[%clk 0:01:19]}  Rf8 {[%clk 0:00:13]} 39. Nf4 {[%clk 0:01:18]}  Qc5 {[%clk 0:00:12]} 40. Rb5 {[%clk 0:01:16]}  Qc6 {[%clk 0:00:12]} 41. Qxc6 {[%clk 0:01:15]}  Rxc6 {[%clk 0:00:13]} 42. Nh5 {[%clk 0:01:13]}  Bh8 {[%clk 0:00:13]} 43. Rb7 {[%clk 0:01:13]}  Rfc8 {[%clk 0:00:13]} 44. Kh2 {[%clk 0:01:10]}  Rc1 {[%clk 0:00:13]} 45. Rd3 {[%clk 0:01:10]}  R8c3 {[%clk 0:00:13]} 46. Rb8+ {[%clk 0:01:08]}  Kh7 {[%clk 0:00:13]} 47. Rd2 {[%clk 0:01:06]}  R1c2 {[%clk 0:00:13]} 48. Rd1 {[%clk 0:01:07]}  Rxf2 {[%clk 0:00:13]} 49. Rb7 {[%clk 0:01:07]}  Rcc2 {[%clk 0:00:13]} 50. Nf4 {[%clk 0:01:04]}  Be5 {[%clk 0:00:14]} 51. Rxf7+ {[%clk 0:01:04]}  Kg8 {[%clk 0:00:13]} 52. Re7 {[%clk 0:00:50]}  Bxf4 {[%clk 0:00:13]} 53. gxf4 {[%clk 0:00:49]}  Rxg2+ {[%clk 0:00:14]} 54. Kh1 {[%clk 0:00:49]}  Rh2+ {[%clk 0:00:14]} 55. Kg1 {[%clk 0:00:50]}  g3 {[%clk 0:00:15]} 56. Ra1 {[%clk 0:00:48]}  Rcg2+ {[%clk 0:00:14]} 57. Kf1 {[%clk 0:00:49]}  Ra2 {[%clk 0:00:15]} 58. Rxa2 {[%clk 0:00:48]}  Rxa2 {[%clk 0:00:15]} 59. Rxe6 {[%clk 0:00:49]}  d3 {[%clk 0:00:16]} 60. Rxh6 {[%clk 0:00:47]}  d2 {[%clk 0:00:15]} 61. Rd6 {[%clk 0:00:46]}  Ra1+ {[%clk 0:00:13]} 62. Ke2 {[%clk 0:00:46]}  d1=Q+ {[%clk 0:00:14]} 63. Rxd1 {[%clk 0:00:44]}  Rxd1 {[%clk 0:00:15]} 64. Kxd1 {[%clk 0:00:45]}  g2 {[%clk 0:00:15]} 65. Ke2 {[%clk 0:00:45]}  g1=Q {[%clk 0:00:16]} 0-1


[Site "https://www.chess.com"]

[Event "Titled Tuesday Blitz October 11 Early 2022"]
[White "Manukian, Artak"]
[Black "Antonio, Jorge Carlos"]
[WhiteFideId "13301373"]
[BlackFideId "113190"]
[WhiteElo "2498"]
[BlackElo "2247"]
[Result "1-0"]
[Round "04"]
[TimeControl "180+1"]
[Date "2022.10.12"]
[WhiteClock "0:00:21"]
[BlackClock "0:00:07"]

1. e4 {[%clk 0:03:00]}  c5 {[%clk 0:02:31]} 2. Nf3 {[%clk 0:02:59]}  e6 {[%clk 0:02:31]} 3. c3 {[%clk 0:02:57]}  Nc6 {[%clk 0:02:29]} 4. d4 {[%clk 0:02:56]}  cxd4 {[%clk 0:02:29]} 5. cxd4 {[%clk 0:02:57]}  d5 {[%clk 0:02:29]} 6. e5 {[%clk 0:02:58]}  a6 {[%clk 0:02:28]} 7. Nc3 {[%clk 0:02:54]}  Bb4 {[%clk 0:02:27]} 8. a3 {[%clk 0:02:44]}  Bxc3+ {[%clk 0:02:25]} 9. bxc3 {[%clk 0:02:45]}  Nge7 {[%clk 0:02:25]} 10. Bd3 {[%clk 0:02:43]}  O-O {[%clk 0:02:24]} 11. Bxh7+ {[%clk 0:02:42]}  Kxh7 {[%clk 0:02:24]} 12. Ng5+ {[%clk 0:02:42]}  Kg6 {[%clk 0:02:21]} 13. h4 {[%clk 0:02:38]}  f6 {[%clk 0:01:56]} 14. h5+ {[%clk 0:02:37]}  Kh6 {[%clk 0:01:54]} 15. Nxe6+ {[%clk 0:02:37]}  Kh7 {[%clk 0:01:46]} 16. Nxd8 {[%clk 0:02:34]}  Nxd8 {[%clk 0:01:45]} 17. h6 {[%clk 0:02:30]}  g6 {[%clk 0:01:42]} 18. exf6 {[%clk 0:02:23]}  Rxf6 {[%clk 0:01:40]} 19. Bg5 {[%clk 0:02:22]}  Re6+ {[%clk 0:01:38]} 20. Kf1 {[%clk 0:02:23]}  Nf5 {[%clk 0:01:38]} 21. Bxd8 {[%clk 0:02:21]}  Bd7 {[%clk 0:01:34]} 22. Bg5 {[%clk 0:02:13]}  Rf8 {[%clk 0:01:32]} 23. Kg1 {[%clk 0:02:10]}  Nd6 {[%clk 0:01:29]} 24. Qb3 {[%clk 0:01:56]}  Bc6 {[%clk 0:01:23]} 25. f3 {[%clk 0:01:42]}  Nc4 {[%clk 0:01:18]} 26. Kh2 {[%clk 0:01:24]}  Rf5 {[%clk 0:01:12]} 27. f4 {[%clk 0:01:24]}  Nd2 {[%clk 0:01:05]} 28. Rhe1 {[%clk 0:01:22]}  Nxb3 {[%clk 0:01:02]} 29. Rxe6 {[%clk 0:01:20]}  Nxa1 {[%clk 0:01:00]} 30. Re7+ {[%clk 0:01:20]}  Kh8 {[%clk 0:00:57]} 31. g4 {[%clk 0:01:11]}  Rf8 {[%clk 0:00:55]} 32. Re6 {[%clk 0:01:11]}  Nb3 {[%clk 0:00:48]} 33. Rxg6 {[%clk 0:01:07]}  Nd2 {[%clk 0:00:48]} 34. Be7 {[%clk 0:00:56]}  Rg8 {[%clk 0:00:46]} 35. f5 {[%clk 0:00:50]}  Ne4 {[%clk 0:00:44]} 36. Rxg8+ {[%clk 0:00:43]}  Kxg8 {[%clk 0:00:40]} 37. Kh3 {[%clk 0:00:43]}  Bd7 {[%clk 0:00:33]} 38. Kh4 {[%clk 0:00:40]}  Kh7 {[%clk 0:00:31]} 39. Bf8 {[%clk 0:00:40]}  Nxc3 {[%clk 0:00:24]} 40. Kg5 {[%clk 0:00:39]}  Ne4+ {[%clk 0:00:23]} 41. Kf4 {[%clk 0:00:39]}  Nf6 {[%clk 0:00:20]} 42. g5 {[%clk 0:00:37]}  Nh5+ {[%clk 0:00:20]} 43. Ke5 {[%clk 0:00:37]}  Bc6 {[%clk 0:00:18]} 44. g6+ {[%clk 0:00:35]}  Kg8 {[%clk 0:00:18]} 45. h7+ {[%clk 0:00:30]}  Kh8 {[%clk 0:00:18]} 46. Be7 {[%clk 0:00:27]}  Be8 {[%clk 0:00:17]} 47. Bg5 {[%clk 0:00:24]}  Ng7 {[%clk 0:00:15]} 48. Bf6 {[%clk 0:00:24]}  Bc6 {[%clk 0:00:11]} 49. Kd6 {[%clk 0:00:21]}  a5 {[%clk 0:00:10]} 50. Ke7 {[%clk 0:00:21]}  a4 {[%clk 0:00:09]} 51. Kf8 {[%clk 0:00:21]}  b5 {[%clk 0:00:07]} 52. Bxg7# {[%clk 0:00:21]} 1-0


[Site "https://www.chess.com"]

[Event "Titled Tuesday Blitz October 11 Early 2022"]
[White "Martin Carmona, Gaston Manuel"]
[Black "Jean Louis, Marckens"]
[WhiteFideId "22284567"]
[BlackFideId "11900270"]
[WhiteElo "2235"]
[BlackElo "2030"]
[Result "1-0"]
[Round "04"]
[TimeControl "180+1"]
[Date "2022.10.12"]
[WhiteClock "0:00:25"]
[BlackClock "0:00:01"]

1. d4 {[%clk 0:02:51]}  d5 {[%clk 0:02:27]} 2. c4 {[%clk 0:02:45]}  e6 {[%clk 0:02:27]} 3. Nc3 {[%clk 0:02:44]}  Nf6 {[%clk 0:02:27]} 4. Nf3 {[%clk 0:02:44]}  Be7 {[%clk 0:02:26]} 5. Bf4 {[%clk 0:02:43]}  O-O {[%clk 0:02:25]} 6. e3 {[%clk 0:02:44]}  b6 {[%clk 0:02:24]} 7. Rc1 {[%clk 0:02:42]}  Bb7 {[%clk 0:02:23]} 8. cxd5 {[%clk 0:02:42]}  exd5 {[%clk 0:02:20]} 9. Bd3 {[%clk 0:02:34]}  c5 {[%clk 0:02:18]} 10. dxc5 {[%clk 0:02:31]}  bxc5 {[%clk 0:02:18]} 11. O-O {[%clk 0:02:32]}  Nc6 {[%clk 0:02:16]} 12. Na4 {[%clk 0:02:30]}  c4 {[%clk 0:02:15]} 13. Bb1 {[%clk 0:02:28]}  Ba6 {[%clk 0:02:02]} 14. Nc3 {[%clk 0:02:25]}  Nb4 {[%clk 0:01:59]} 15. Ne5 {[%clk 0:02:21]}  Rc8 {[%clk 0:01:25]} 16. a3 {[%clk 0:02:19]}  Nc6 {[%clk 0:01:25]} 17. Nxc6 {[%clk 0:02:19]}  Rxc6 {[%clk 0:01:25]} 18. Qa4 {[%clk 0:02:10]}  Rb6 {[%clk 0:01:24]} 19. Rfd1 {[%clk 0:02:10]}  Bb7 {[%clk 0:01:19]} 20. Qc2 {[%clk 0:02:06]}  g6 {[%clk 0:01:15]} 21. Be5 {[%clk 0:02:05]}  Qc8 {[%clk 0:01:08]} 22. Bxf6 {[%clk 0:02:00]}  Bxf6 {[%clk 0:01:07]} 23. Nxd5 {[%clk 0:02:01]}  Bxd5 {[%clk 0:01:06]} 24. Rxd5 {[%clk 0:02:01]}  Bxb2 {[%clk 0:00:59]} 25. Rcd1 {[%clk 0:02:00]}  Bxa3 {[%clk 0:00:56]} 26. Ba2 {[%clk 0:01:56]}  c3 {[%clk 0:00:36]} 27. Rd7 {[%clk 0:01:55]}  Rb2 {[%clk 0:00:29]} 28. Bxf7+ {[%clk 0:01:54]}  Rxf7 {[%clk 0:00:24]} 29. Qa4 {[%clk 0:01:16]}  Bf8 {[%clk 0:00:12]} 30. Rd8 {[%clk 0:00:38]}  Qf5 {[%clk 0:00:05]} 31. f4 {[%clk 0:00:34]}  Qg4 {[%clk 0:00:04]} 32. Qe4 {[%clk 0:00:25]}  c2 {[%clk 0:00:01]} 33. Rc1 {[%clk 0:00:25]} 1-0


[Site "https://www.chess.com"]

[Event "Titled Tuesday Blitz October 11 Early 2022"]
[White "Matveeva, Olga"]
[Black "Aloma Vidal, Robert"]
[WhiteFideId "24107018"]
[BlackFideId "2260409"]
[WhiteElo "2055"]
[BlackElo "2435"]
[Result "0-1"]
[Round "04"]
[TimeControl "180+1"]
[Date "2022.10.12"]
[WhiteClock "0:01:09"]
[BlackClock "0:00:52"]

1. d4 {[%clk 0:03:00]}  d5 {[%clk 0:02:59]} 2. c4 {[%clk 0:03:00]}  c6 {[%clk 0:03:00]} 3. Nf3 {[%clk 0:02:59]}  Nf6 {[%clk 0:03:00]} 4. Qb3 {[%clk 0:02:59]}  e6 {[%clk 0:02:59]} 5. g3 {[%clk 0:02:56]}  dxc4 {[%clk 0:02:59]} 6. Qxc4 {[%clk 0:02:56]}  b5 {[%clk 0:03:00]} 7. Qc2 {[%clk 0:02:53]}  Bb7 {[%clk 0:02:58]} 8. Bg2 {[%clk 0:02:52]}  Nbd7 {[%clk 0:02:58]} 9. a4 {[%clk 0:02:48]}  b4 {[%clk 0:02:54]} 10. O-O {[%clk 0:02:45]}  c5 {[%clk 0:02:51]} 11. Rd1 {[%clk 0:02:41]}  Rc8 {[%clk 0:02:47]} 12. dxc5 {[%clk 0:02:24]}  Bxc5 {[%clk 0:02:46]} 13. Qb3 {[%clk 0:02:18]}  Qb6 {[%clk 0:02:16]} 14. e3 {[%clk 0:02:17]}  Bd5 {[%clk 0:02:04]} 15. Qd3 {[%clk 0:02:16]}  Qb7 {[%clk 0:02:03]} 16. Ne1 {[%clk 0:02:13]}  Bxg2 {[%clk 0:01:59]} 17. Nxg2 {[%clk 0:02:14]}  O-O {[%clk 0:01:52]} 18. b3 {[%clk 0:02:13]}  Ne5 {[%clk 0:01:51]} 19. Qb5 {[%clk 0:02:10]}  Nf3+ {[%clk 0:01:50]} 20. Kh1 {[%clk 0:02:09]}  Ng4 {[%clk 0:01:34]} 21. Ra2 {[%clk 0:02:03]}  Qa8 {[%clk 0:01:16]} 22. h3 {[%clk 0:01:48]}  Nf6 {[%clk 0:01:10]} 23. Nd2 {[%clk 0:01:46]}  Rfd8 {[%clk 0:01:05]} 24. Qe2 {[%clk 0:01:45]}  Ne5 {[%clk 0:01:00]} 25. Nf1 {[%clk 0:01:35]}  Bb6 {[%clk 0:00:58]} 26. Rad2 {[%clk 0:01:27]}  Rxd2 {[%clk 0:00:58]} 27. Qxd2 {[%clk 0:01:28]}  h6 {[%clk 0:00:55]} 28. Bb2 {[%clk 0:01:27]}  Ne4 {[%clk 0:00:53]} 29. Qe1 {[%clk 0:01:24]}  Nc3 {[%clk 0:00:53]} 30. Bxc3 {[%clk 0:01:12]}  bxc3 {[%clk 0:00:53]} 31. Rc1 {[%clk 0:01:11]}  Nd3 {[%clk 0:00:52]} 32. Qd1 {[%clk 0:01:09]}  Nxf2+ {[%clk 0:00:52]} 0-1


[Site "https://www.chess.com"]

[Event "Titled Tuesday Blitz October 11 Early 2022"]
[White "Melikhov, Evgeny V."]
[Black "Acosta Cruz, Oscar Yosimar"]
[WhiteFideId "4122046"]
[BlackFideId "5111269"]
[WhiteElo "2169"]
[BlackElo "2147"]
[Result "1/2-1/2"]
[Round "04"]
[TimeControl "180+1"]
[Date "2022.10.12"]
[WhiteClock "0:00:09"]
[BlackClock "0:00:25"]

1. d4 {[%clk 0:02:57]}  d5 {[%clk 0:02:59]} 2. c4 {[%clk 0:02:55]}  c6 {[%clk 0:03:00]} 3. Nc3 {[%clk 0:02:54]}  Nf6 {[%clk 0:03:00]} 4. e3 {[%clk 0:02:53]}  a6 {[%clk 0:03:00]} 5. c5 {[%clk 0:02:52]}  Bf5 {[%clk 0:02:58]} 6. f4 {[%clk 0:02:51]}  Nbd7 {[%clk 0:02:56]} 7. Nf3 {[%clk 0:02:51]}  e6 {[%clk 0:02:54]} 8. Be2 {[%clk 0:02:51]}  Be7 {[%clk 0:02:51]} 9. O-O {[%clk 0:02:50]}  O-O {[%clk 0:02:51]} 10. Bd2 {[%clk 0:02:51]}  b6 {[%clk 0:02:51]} 11. cxb6 {[%clk 0:02:50]}  Qxb6 {[%clk 0:02:51]} 12. Na4 {[%clk 0:02:49]}  Qa7 {[%clk 0:02:51]} 13. Rc1 {[%clk 0:02:40]}  c5 {[%clk 0:02:45]} 14. dxc5 {[%clk 0:02:18]}  Nxc5 {[%clk 0:02:44]} 15. Nd4 {[%clk 0:02:14]}  Nxa4 {[%clk 0:02:37]} 16. Qxa4 {[%clk 0:02:14]}  Ne4 {[%clk 0:02:28]} 17. Nc6 {[%clk 0:02:01]}  Qd7 {[%clk 0:02:26]} 18. Nxe7+ {[%clk 0:02:01]}  Qxe7 {[%clk 0:02:25]} 19. Bb4 {[%clk 0:01:46]}  Qa7 {[%clk 0:02:24]} 20. Bxf8 {[%clk 0:01:40]}  Qxe3+ {[%clk 0:02:22]} 21. Kh1 {[%clk 0:01:40]}  Nf2+ {[%clk 0:01:57]} 22. Rxf2 {[%clk 0:01:38]}  Qxf2 {[%clk 0:01:58]} 23. Bxa6 {[%clk 0:00:46]}  Be4 {[%clk 0:01:51]} 24. Rg1 {[%clk 0:00:38]}  Kxf8 {[%clk 0:01:44]} 25. Qc6 {[%clk 0:00:32]}  Qa7 {[%clk 0:01:27]} 26. Bb7 {[%clk 0:00:26]}  Rb8 {[%clk 0:01:21]} 27. Qd6+ {[%clk 0:00:25]}  Kg8 {[%clk 0:01:21]} 28. Bc6 {[%clk 0:00:21]}  h5 {[%clk 0:01:20]} 29. b4 {[%clk 0:00:17]}  h4 {[%clk 0:01:18]} 30. h3 {[%clk 0:00:17]}  Kh7 {[%clk 0:00:54]} 31. a4 {[%clk 0:00:15]}  Qe3 {[%clk 0:00:50]} 32. f5 {[%clk 0:00:02]}  Qxh3+ {[%clk 0:00:48]} 33. Qh2 {[%clk 0:00:02]}  Qxh2+ {[%clk 0:00:48]} 34. Kxh2 {[%clk 0:00:03]}  Rxb4 {[%clk 0:00:48]} 35. fxe6 {[%clk 0:00:03]}  fxe6 {[%clk 0:00:47]} 36. Kh3 {[%clk 0:00:03]}  Bd3 {[%clk 0:00:41]} 37. g3 {[%clk 0:00:03]}  hxg3 {[%clk 0:00:39]} 38. Kxg3 {[%clk 0:00:03]}  e5 {[%clk 0:00:38]} 39. Rh1+ {[%clk 0:00:03]}  Kg6 {[%clk 0:00:36]} 40. Bxd5 {[%clk 0:00:03]}  Rxa4 {[%clk 0:00:35]} 41. Kf2 {[%clk 0:00:04]}  e4 {[%clk 0:00:31]} 42. Ke3 {[%clk 0:00:03]}  Ra5 {[%clk 0:00:29]} 43. Rg1+ {[%clk 0:00:03]}  Kf6 {[%clk 0:00:27]} 44. Bxe4 {[%clk 0:00:03]}  Bxe4 {[%clk 0:00:26]} 45. Kxe4 {[%clk 0:00:04]}  Re5+ {[%clk 0:00:25]} 46. Kf4 {[%clk 0:00:04]}  Rf5+ {[%clk 0:00:25]} 47. Ke3 {[%clk 0:00:05]}  g5 {[%clk 0:00:24]} 48. Rg2 {[%clk 0:00:04]}  Rf4 {[%clk 0:00:22]} 49. Rf2 {[%clk 0:00:03]}  Kf5 {[%clk 0:00:19]} 50. Rxf4+ {[%clk 0:00:04]}  gxf4+ {[%clk 0:00:20]} 51. Kf3 {[%clk 0:00:05]}  Kg5 {[%clk 0:00:20]} 52. Kf2 {[%clk 0:00:05]}  Kh4 {[%clk 0:00:20]} 53. Kf3 {[%clk 0:00:05]}  Kg5 {[%clk 0:00:20]} 54. Kf2 {[%clk 0:00:05]}  Kg4 {[%clk 0:00:21]} 55. Kg2 {[%clk 0:00:06]}  Kf5 {[%clk 0:00:21]} 56. Kf3 {[%clk 0:00:06]}  Ke5 {[%clk 0:00:21]} 57. Kf2 {[%clk 0:00:06]}  Kd5 {[%clk 0:00:20]} 58. Kf3 {[%clk 0:00:06]}  Ke5 {[%clk 0:00:21]} 59. Kf2 {[%clk 0:00:07]}  Ke4 {[%clk 0:00:21]} 60. Ke2 {[%clk 0:00:07]}  f3+ {[%clk 0:00:20]} 61. Kf2 {[%clk 0:00:07]}  Kf4 {[%clk 0:00:21]} 62. Kf1 {[%clk 0:00:07]}  Kg3 {[%clk 0:00:21]} 63. Kg1 {[%clk 0:00:08]}  Kg4 {[%clk 0:00:21]} 64. Kf2 {[%clk 0:00:08]}  Kf4 {[%clk 0:00:22]} 65. Kf1 {[%clk 0:00:08]}  Ke3 {[%clk 0:00:23]} 66. Ke1 {[%clk 0:00:08]}  Kf4 {[%clk 0:00:23]} 67. Kf2 {[%clk 0:00:09]}  Ke4 {[%clk 0:00:24]} 68. Kf1 {[%clk 0:00:08]}  Ke3 {[%clk 0:00:24]} 69. Ke1 {[%clk 0:00:09]}  Kf4 {[%clk 0:00:22]} 70. Kf2 {[%clk 0:00:09]}  Kg4 {[%clk 0:00:23]} 71. Kf1 {[%clk 0:00:09]}  Kh3 {[%clk 0:00:23]} 72. Kf2 {[%clk 0:00:09]}  Kg4 {[%clk 0:00:24]} 73. Kf1 {[%clk 0:00:09]}  Kg3 {[%clk 0:00:25]} 74. Kg1 {[%clk 0:00:09]}  Kf4 {[%clk 0:00:25]} 75. Kf2 {[%clk 0:00:09]} 1/2-1/2


[Site "https://www.chess.com"]

[Event "Titled Tuesday Blitz October 11 Early 2022"]
[White "Mikhailovsky, Vladimir"]
[Black "Soto Vega, Jorge"]
[WhiteFideId "34105414"]
[BlackFideId "3800580"]
[WhiteElo "2297"]
[BlackElo "2263"]
[Result "0-1"]
[Round "04"]
[TimeControl "180+1"]
[Date "2022.10.12"]
[WhiteClock "0:00:18"]
[BlackClock "0:01:06"]

1. e4 {[%clk 0:03:00]}  d5 {[%clk 0:02:57]} 2. exd5 {[%clk 0:03:01]}  Qxd5 {[%clk 0:02:56]} 3. Nc3 {[%clk 0:02:59]}  Qa5 {[%clk 0:02:56]} 4. b4 {[%clk 0:02:59]}  Qxb4 {[%clk 0:02:55]} 5. a4 {[%clk 0:02:59]}  c6 {[%clk 0:02:54]} 6. Ba3 {[%clk 0:02:59]}  Qa5 {[%clk 0:02:54]} 7. Nf3 {[%clk 0:03:00]}  Nf6 {[%clk 0:02:53]} 8. Bc4 {[%clk 0:02:53]}  Nbd7 {[%clk 0:02:52]} 9. O-O {[%clk 0:02:39]}  e6 {[%clk 0:02:51]} 10. Qe2 {[%clk 0:02:05]}  Bxa3 {[%clk 0:02:48]} 11. Rxa3 {[%clk 0:02:06]}  O-O {[%clk 0:02:47]} 12. Rb1 {[%clk 0:02:06]}  Nb6 {[%clk 0:02:28]} 13. Ne5 {[%clk 0:01:55]}  Nbd5 {[%clk 0:02:19]} 14. Nxd5 {[%clk 0:01:26]}  exd5 {[%clk 0:02:18]} 15. Ba2 {[%clk 0:01:14]}  Ne4 {[%clk 0:02:08]} 16. d4 {[%clk 0:01:11]}  Qd2 {[%clk 0:02:01]} 17. Qxd2 {[%clk 0:00:50]}  Nxd2 {[%clk 0:02:00]} 18. Rd1 {[%clk 0:00:45]}  Ne4 {[%clk 0:01:59]} 19. c4 {[%clk 0:00:46]}  Be6 {[%clk 0:01:56]} 20. Rb1 {[%clk 0:00:42]}  Rab8 {[%clk 0:01:47]} 21. cxd5 {[%clk 0:00:32]}  cxd5 {[%clk 0:01:47]} 22. f3 {[%clk 0:00:32]}  Nd6 {[%clk 0:01:45]} 23. Rc3 {[%clk 0:00:28]}  Rbc8 {[%clk 0:01:45]} 24. Rc5 {[%clk 0:00:27]}  b6 {[%clk 0:01:41]} 25. Rc6 {[%clk 0:00:28]}  Rxc6 {[%clk 0:01:35]} 26. Nxc6 {[%clk 0:00:29]}  Ra8 {[%clk 0:01:34]} 27. Bxd5 {[%clk 0:00:25]}  Bxd5 {[%clk 0:01:30]} 28. Ne7+ {[%clk 0:00:25]}  Kf8 {[%clk 0:01:30]} 29. Nxd5 {[%clk 0:00:26]}  Rc8 {[%clk 0:01:29]} 30. Nb4 {[%clk 0:00:18]}  Rc4 {[%clk 0:01:26]} 31. d5 {[%clk 0:00:19]}  Rd4 {[%clk 0:01:21]} 32. Nc6 {[%clk 0:00:18]}  Rxa4 {[%clk 0:01:20]} 33. Nxa7 {[%clk 0:00:19]}  Rxa7 {[%clk 0:01:20]} 34. Rxb6 {[%clk 0:00:17]}  Ke7 {[%clk 0:01:18]} 35. Kf2 {[%clk 0:00:17]}  Ra2+ {[%clk 0:01:17]} 36. Kg3 {[%clk 0:00:17]}  Ra4 {[%clk 0:01:15]} 37. h3 {[%clk 0:00:16]}  h5 {[%clk 0:01:14]} 38. Kh2 {[%clk 0:00:16]}  h4 {[%clk 0:01:15]} 39. Rc6 {[%clk 0:00:16]}  g5 {[%clk 0:01:14]} 40. Rc7+ {[%clk 0:00:16]}  Kf6 {[%clk 0:01:13]} 41. Rd7 {[%clk 0:00:16]}  Ke5 {[%clk 0:01:13]} 42. Rd8 {[%clk 0:00:17]}  Kxd5 {[%clk 0:01:12]} 43. Rg8 {[%clk 0:00:18]}  f6 {[%clk 0:01:12]} 44. Rd8 {[%clk 0:00:17]}  Ke6 {[%clk 0:01:11]} 45. Rb8 {[%clk 0:00:17]}  Ra2 {[%clk 0:01:11]} 46. Rb3 {[%clk 0:00:17]}  Nf5 {[%clk 0:01:10]} 47. Rb6+ {[%clk 0:00:17]}  Kf7 {[%clk 0:01:10]} 48. Rb5 {[%clk 0:00:18]}  Kg6 {[%clk 0:01:09]} 49. f4 {[%clk 0:00:18]}  gxf4 {[%clk 0:01:09]} 50. Kh1 {[%clk 0:00:18]}  Ng3+ {[%clk 0:01:07]} 51. Kg1 {[%clk 0:00:18]}  Ra1+ {[%clk 0:01:06]} 52. Kf2 {[%clk 0:00:18]}  Rf1# {[%clk 0:01:06]} 0-1


[Site "https://www.chess.com"]